Cogmind - Beta 13 @@@ ROGUE MODE // 2024.05.08 @ 02:49:35 Player: void Result: Destroyed by G-34 Mercenary with Small Laser Performance ------------- Evolutions (0) 0 Regions Visited (2) 400 Robots Destroyed (17) 85 Value Destroyed (155) 155 Prototype IDs (0) 0 Alien Tech Used (0) 0 Bonus (0) 0 TOTAL SCORE: 640 Bonus ------- None Cogmind --------- Core Integrity 0/250 Matter 300/300 Energy 99/100 System Corruption 0% Temperature Cool (6) Movement Core (400) Ox7 Location -10/Mines Parts ------- > --- POWER (1) -------- (None) > --- PROPULSION (2) --- (None) > --- UTILITY (2) ------ Large Storage Unit > --- WEAPON (2) ------- Makeshift Axe > --- INVENTORY (15) --- Improved Terrain Scanner EM Pulse Gun Small Laser Light Assault Rifle Light Assault Rifle Light Assault Rifle Light Assault Rifle Mining Laser Shock Trap Shock Trap Shock Trap Peak State ------------ > --- POWER ------------ Light Ion Engine > --- PROPULSION ------- Aluminum Leg > --- UTILITY ---------- Large Storage Unit Sensor Array > --- WEAPON ----------- Assault Rifle Makeshift Axe > --- INVENTORY -------- Improved Terrain Scanner EM Pulse Gun Small Laser Light Assault Rifle Light Assault Rifle Light Assault Rifle Light Assault Rifle Mining Laser Shock Trap Shock Trap Shock Trap [Rating: 10] Favorites ----------- Power Light Ion Engine Engine Light Ion Engine Propulsion Aluminum Leg Leg Aluminum Leg Utility Large Storage Unit Device Sensor Array Storage Large Storage Unit Weapon Light Assault Rifle Energy Gun Small Laser Ballistic Gun Light Assault Rifle Slashing Weapon Makeshift Axe Build | -11 -10 -10 ------- Run | Yrd Mat Min Slots Evolved . | . . . Power . | . . . Propulsion . | . . . Utility . | . . . Weapon . | . . . Parts Attached 18 | 7 7 4 Power 2 | 1 . 1 Engine 2 | 1 . 1 Core . | . . . Reactor . | . . . Propulsion 5 | 2 2 1 Treads . | . . . Leg 5 | 2 2 1 Wheel . | . . . Hover . | . . . Flight . | . . . Utility 5 | 2 2 1 Device 3 | 1 1 1 Storage 2 | 1 1 . Processor . | . . . Hackware . | . . . Protection . | . . . Artifact . | . . . Weapon 6 | 2 3 1 Energy Gun 1 | 1 . . Energy Cannon . | . . . Ballistic Gun 4 | 1 3 . Ballistic Cannon . | . . . Launcher . | . . . Special Weapon . | . . . Impact Weapon . | . . . Slashing Weapon 1 | . . 1 Piercing Weapon . | . . . Special Melee Weapon . | . . . Unidentified Prototypes . | . . . Parts Lost 7 | . . 7 Power 2 | . . 2 Propulsion 3 | . . 3 Utility 1 | . . 1 Weapon 1 | . . 1 Highest Loss Streak 4 | . . 4 To Critical Strikes . | . . . Average Slot Usage (%) 89 | . 96 85 Engine 13 | . 14 12 Leg 21 | . 27 17 Device 12 | . 11 12 Storage 14 | . 14 14 Ballistic Gun 25 | . 25 25 Slashing Weapon 1 | . . 1 Naked Turns . | . . . Heaviest Build 29 | 13 29 29 Greatest Support 20 | 20 20 20 Greatest Overweight (x) 8 | 1 1 8 Average Overweight (x) . | . . 1 Largest Inventory Capacity 15 | 8 15 15 Average Capacity 12 | 7 9 15 Most Carried 11 | 4 7 11 Average Carried 6 | 2 5 7 Final Capacity 15 | 8 15 15 Final Carried 11 | 4 5 11 Class Distribution -------------------- 100% | Mutant Dominant Class ---------------- Mutant | -10/Materials Mutant | -10/Mines Resources | -11 -10 -10 ----------- Run | Yrd Mat Min Matter Collected 460 | 263 86 111 Remotely . | . . . Salvage Created 346 | 105 99 142 Parts 39 | 10 17 12 Haulers Intercepted . | . . . Recyclers Shooed . | . . . Parts Field Recycled . | . . . Retrieved Matter . | . . . Parts Self-Destructed . | . . . Prevented . | . . . Kills | -11 -10 -10 ------- Run | Yrd Mat Min Combat Hostiles Destroyed 14 | . 6 8 Melee 1 | . . 1 Guns 13 | . 6 7 Classes Destroyed 3 | 1 1 1 Tunneler 5 | 4 . 1 Swarmer 12 | . 6 6 Assembled 2 | . . 2 Best Kill Streak 4 | 4 3 3 Combat Bots Only 3 | . 3 3 Max Kills in Single Turn 1 | 1 1 1 Gunslinging . | . . . Exploded . | . . . Melee 1 | . . 1 Uniques/NPCs Destroyed . | . . . Combat | -11 -10 -10 -------- Run | Yrd Mat Min Hostile Shots Fired 104 | . 26 78 Missed 23 | . 6 17 Damage Taken 808 | . 174 634 Core 260 | . 27 233 Absorbed by Shields . | . . . Core Remaining (%) 100 | 100 . . Volleys Fired 37 | 5 12 20 Largest 2 | 2 2 2 Hottest 60 | 60 60 40 Shots Fired 72 | 10 24 38 Gun 72 | 10 24 38 Cannon . | . . . Launcher . | . . . Special . | . . . Kinetic 59 | 5 16 38 Thermal 13 | 5 8 . Explosive . | . . . Electromagnetic . | . . . Robot Hit Streak 7 | 6 7 5 Robot Miss Streak 4 | 1 4 3 Penetration Max . | . . . Secondary Targets 1 | . . 1 Max Gunslinging Chain 1 | . . 1 Shots Hit Robots 45 | 7 13 25 Core Hits 24 | 6 6 12 Critical Kills . | . . . Critical Parts Destroyed . | . . . Critical Strikes 1 | . . 1 Sever 1 | . . 1 Melee Attacks 12 | . . 12 Impact . | . . . Slashing 12 | . . 12 Piercing . | . . . Sneak Attacks . | . . . Combat Hostiles . | . . . Follow-up Attacks . | . . . Damage Inflicted 634 | 70 139 425 Guns 461 | 70 139 252 Cannons . | . . . Explosions . | . . . Melee 173 | . . 173 Ramming . | . . . Kinetic 375 | 28 95 252 Thermal 86 | 42 44 . Explosive . | . . . Electromagnetic . | . . . Impact . | . . . Slashing 173 | . . 173 Piercing . | . . . Highest Corruption . | . . . Average Corruption . | . . . Corruption Purged . | . . . Corruption Blocked . | . . . Overload Shots . | . . . Overflow Damage . | . . . Projectiles . | . . . Explosions . | . . . Melee . | . . . Knockbacks . | . . . Impact . | . . . Kinetic . | . . . Secondary . | . . . Self-Inflicted Damage . | . . . Shots . | . . . Rammed . | . . . Targets Rammed . | . . . Kicked . | . . . Crushed . | . . . Highest Temperature 60 | 20 60 . Average Temperature 24 | 15 28 . Received Heat Transfer 108 | . . 108 Siege Activations . | . . . Robots Corrupted . | . . . Combat Hostiles . | . . . Parts Fried . | . . . Impact Corruptions . | . . . Robots Melted . | . . . Combat Hostiles . | . . . Parts Melted . | . . . Heat Transferred 200 | 100 100 . Parts Sabotaged . | . . . Parts Stolen . | . . . Parts Stripped . | . . . Power Chain Reactions . | . . . Alert | -11 -10 -10 ------- Run | Yrd Mat Min Peak Influence 208 | 20 208 196 Initial 81 | . 13 81 Average 101 | 6 145 90 Maximum Alert Level 1 | . 1 . Low Security (%) 92 | 100 76 100 Level 1 7 | . 23 . Level 2 . | . . . Level 3 . | . . . Level 4 . | . . . Level 5 . | . . . High Security . | . . . Max Security . | . . . Squads Dispatched 1 | . 1 . Investigation 1 | . 1 . Extermination . | . . . Reinforcement . | . . . Assault . | . . . Garrison . | . . . Intercept . | . . . Searches Triggered . | . . . Construction Impeded . | . . . Haulers Reinforced . | . . . Active Scanning Responses . | . . . Cargo Convoy Interrupts . | . . . Stealth | -11 -10 -10 --------- Run | Yrd Mat Min Distress Signals . | . . . Communications Jammed . | . . . Distress Signals . | . . . Times Spotted 18 | . 7 11 Peak Tracking Total 3 | . 3 3 Tactical Retreats 1 | . 1 . Traps | -11 -10 -10 ------- Run | Yrd Mat Min Traps Triggered 2 | . 2 . Indirectly . | . . . Trap Hack Attempts . | . . . Triggered . | . . . Disarmed 6 | . 6 . Reprogrammed . | . . . Reused . | . . . Traps Extracted . | . . . Installed . | . . . Triggered . | . . . Most Traps Carried 3 | . . 3 Machines | -11 -10 -10 ---------- Run | Yrd Mat Min Machines Disabled . | . . . Max in Single Turn . | . . . Machines Repaired . | . . . Machines Dismantled . | . . . Machines Sabotaged . | . . . Overloaded Fab Kills . | . . . Hacking | -11 -10 -10 --------- Run | Yrd Mat Min Machines Accessed 3 | . 3 . Terminals 3 | . 3 . Fabricators . | . . . Repair Stations . | . . . Recycling Units . | . . . Scanalyzers . | . . . Garrison Access . | . . . Total Hacks 10 | . 10 . Successful 6 | . 6 . Failed 4 | . 4 . Catastrophic . | . . . Database Lockouts . | . . . Manual 4 | . 4 . Terminals 10 | . 10 . Fabricators . | . . . Repair Stations . | . . . Recycling Units . | . . . Scanalyzers . | . . . Garrison Access . | . . . Terminal Hacks 6 | . 6 . Level Access Points 1 | . 1 . Branch Access Points 1 | . 1 . Locate Traps 1 | . 1 . Disarm Traps 1 | . 1 . Patrol Status 2 | . 2 . Fabricator Hacks . | . . . Repair Station Hacks . | . . . Recycling Unit Hacks . | . . . Scanalyzer . | . . . Garrison Access Hacks . | . . . Unauthorized Hacks . | . . . Terminals . | . . . Fabricators . | . . . Repair Stations . | . . . Recycling Units . | . . . Scanalyzers . | . . . Garrison Access . | . . . Data Cores Recovered . | . . . Used . | . . . Hacking Detections 3 | . 3 . Full Trace Events 1 | . 1 . Feedback Events . | . . . Feedback Blocked . | . . . Robot Schematics Acquired . | . . . Robots Built . | . . . Authchips . | . . . Time . | . . . Total Robot Build Rating . | . . . Part Schematics Acquired . | . . . Parts Built . | . . . Authchips . | . . . Time . | . . . Total Part Build Rating . | . . . Parts Repaired . | . . . Time . | . . . Parts Recycled . | . . . Recycled Matter . | . . . Retrieved Matter . | . . . Retrieved Components . | . . . Parts Scanalyzed . | . . . Part Schematics Acquired . | . . . Parts Damaged . | . . . Bothacking | -11 -10 -10 ------------ Run | Yrd Mat Min Used RIF Installer . | . . . Robots Hacked . | . . . Non-combat . | . . . Combat . | . . . Robot Hacks Applied . | . . . Relay Couplers Released . | . . . Fabnet Peak Effective % . | . . . Robots Rewired . | . . . Allies Hacked . | . . . Hacks Repelled . | . . . Allies | -11 -10 -10 -------- Run | Yrd Mat Min Total Allies . | . . . Largest Group . | . . . Highest-Rated Group . | . . . Highest-Rated Ally . | . . . Total Orders . | . . . Ally Attacks . | . . . Total Damage . | . . . Kills . | . . . Allies Corrupted . | . . . Allies Melted . | . . . Intel | -11 -10 -10 ------- Run | Yrd Mat Min Robot Analysis Total . | . . . Derelict Logs Recovered 1 | . . 1 Drone Launches . | . . . Drone Recoveries . | . . . Exploration | -11 -10 -10 ------------- Run | Yrd Mat Min Turns Passed 1079 | 84 340 655 Spaces Moved 469 | 48 179 242 Core 14 | 8 . 6 Treads . | . . . Legs 455 | 40 179 236 Wheels . | . . . Hover . | . . . Flight . | . . . Fastest Speed 50 | 50 120 190 Average Speed 182 | 117 130 233 Slowest Speed 450 | 190 190 450 Overloaded Moves . | . . . Propulsion Burnouts . | . . . Robots Hopped . | . . . Cave-ins Triggered . | . . . Exploration Rate (%) 33 | 4 37 60 Regions Visited 2 Branch Regions 1 Pre-discovered Areas . | . . . Known Exits Taken 1 | . 1 . Unknown Exits Taken 1 | 1 . . Scrap Searched . | . . . Spaces Dug . | . . . Terrain Destroyed . | . . . Melee . | . . . Projectile . | . . . AOE . | . . . Terrain Rammed . | . . . Walls Destroyed . | . . . Machines Disabled . | . . . Actions | -11 -10 -10 --------- Run | Yrd Mat Min Total 613 | 63 262 288 Wait 63 | . 61 2 Move 467 | 47 178 242 Hop . | . . . Pick Up 13 | 4 2 7 Fast Attach 12 | 7 4 1 Attach 3 | . 1 2 Detach 1 | . . 1 Swap 3 | . 2 1 Drop 2 | . 2 . Fire 37 | 5 12 20 Melee 12 | . . 12 Ram . | . . . Kick . | . . . Crush . | . . . Escape Stasis . | . . . Rewire . | . . . Trap . | . . . Miscellaneous . | . . . Route ------- -11/Scrapyard -10/Materials (discovered 4 exits: Mat x3 / *Min) -10/Mines (discovered 2 exits: *Mat x2) History --------- Turn | Location | Event 23 | -11/Scrapyard | Discovered new exit (range 15) 85 | -11/Scrapyard | Entered Materials 94 | -10/Materials | Identified exit to Materials 94 | -10/Materials | Identified exit to Mines 304 | -10/Materials | Build established: Mutant 425 | -10/Materials | Entered Mines 456 | -10/Mines | Met a Derelict bent on vengeance 513 | -10/Mines | Learned 2 Materials zone layouts 536 | -10/Mines | Received a Rocket Launcher from a helpful Derelict 537 | -10/Mines | Discovered exit to Materials (range 14) 839 | -10/Mines | Found a hidden stash of uninstalled traps 933 | -10/Mines | Discovered exit to Materials (range 7) 1001 | -10/Mines | A weapon hastily lodged in a ceiling crevice suddenly fell to the ground 1026 | -10/Mines | Excavation squad dispatched 1026 | -10/Mines | A large section of the Mines collapsed 1040 | -10/Mines | Core integrity fell below 50% 1073 | -10/Mines | Core integrity fell below 20% 1080 | -10/Mines | Destroyed by G-34 Mercenary with Small Laser Last Messages --------------- A stash of uninstalled traps is collected here! Acquired Shock Trap. EXIT=FOUND: MATERIALS A Mak. Axe has been hastily shoved under some rubble with a note attached: "Chop chop!" Acquired Mak. Axe. ALERT: Suspicious cave-in, suspected derelict activity in mines. Dispatching escorted excavation squad. as-40594 destroyed. Sensor Array destroyed. Aluminum Leg destroyed. Lgt. Ion Engine destroyed. as-28378 destroyed. Acquired 3 matter. T-07 Excavator is excavating. Assault Rifle destroyed. T-07 Excavator is excavating. G-34 Mercenary Sml. Laser severed. T-07 Excavator is excavating. [Achievement: Back For More] Map ----- +----------------------------------------------------+ | ?## ##??????# #???##### #??# #?### | | ??###????????# ######???# #??#%##??? | | ?????????????# #????????# #### ##?? | | ?????????????# #??????### ##### #?? | | ????????###### #?????## #??# #?? | | ????????# #??#### #### ##?? | | ????????# ######??# ## ##??? | | ???????## #??????# """ ##???? | | ??????## ####???# """ ##????? | | ?????## ##??# """ #?????? | | ?????# """ #??## ## ##?????? | | ?????# < """ #???# ## #### ##??????? | | ????## """ #???# ?# ##???####???????? | | ????# #???# ?# ????????????????? | | ????# ##??? ?# ????????????????? | | ????## ## #??? ?# ????????????????? | | ?????## ?## #??? ?# ?????????????????? | | ??????# ??# #??? ?? ?????????????????? | | ??????# ### ##??? ?#??????????????????? | | ??????# ###???# #???????????????????? | | ??????##### #?????# #???????????????????? | | ??????????# #####?# #???????????????????? | | ??????????# #?# #???????????????????? | | ??????????##### #?# #???????????????????? | | ????????#######g### #???????????????????? | | ????##### g@## #######?????????????? | | ????# % ######??????????? | | ???# [ " # ##?????????? | | ???# t ### # #?????????? | | ??# ### #?##%# #????????? | | ??# ???##### ##???## #????????? | | ??## ????????#####????? ##????????? | | ???##????????????????????? ##?????????? | | ???????????????????????????###??????????? | | ????????????????????????????????????????? | | ????????????????????????????????????????? | | ????????????????????????????????????????? | | ????????????????????????????????????????? | | ????????????????????????????????????????? | | ????????????????????????????????????????? | | ????????????????????????????????????????? | | ????????????????????????????????????????? | | ????????????????????????????????????????? | | ????????????????????????????????????????? | | ????????????????????????????????????????? | | ????????????????????????????????????????? | | ????????????????????????????????????????? | | ????????????????????????????????????????? | | ????????????????????????????????????????? | | ????????????????????????????????????????? | +----------------------------------------------------+ Best States ------------- Heat Dissipation 25 Energy Generation 10 Energy Capacity 250 Matter Stores 300 Matter Capacity 300 Sight Range 16 Robot Scan Range 14 Terrain Scan Range 16 Terrain Scan Density 10 Evasion (%) 55 Item Schematics ----------------- None Robot Schematics ------------------ None Fabricated ------------ Nothing Alien Tech Used ----------------- None Achievements -------------- Back For More Challenges ------------ None Game ------ Seed SubdwellerFieldBroadsword Manual? 0 Play Time 00:10:35 Cumulative 23.3 hours Start 2024.05.08 @ 02:38:55 End 2024.05.08 @ 02:49:35 Sessions 1 Manual Loads 0 Difficulty Rogue Special Mode None Game No. 50 Rogue 42 Adventurer 8 Explorer 0 Win Type - Total 0 Types 0/0/0/0/0/0/0/0/0 Lore% 8 Gallery% 27 Achievement% 20 Wizard Run 0 Options --------- Layout 0 ASCII 0 Keyboard 0 Movement Mouse Keybinds 0 Fullscreen 2 Font 18/SmallcapsGlow Map View 76x50 Zoom Use 19% Tactical HUD 0 Map Filters NONE Filters NONE Steam 1 RUN: 0ba012d7-c38d-4e22-aa78-c6297facbea0